fUSD/lending_fUSD_20250307
["ID","MTS","AMOUNT","RATE_DAILY","PERIOD"]
[355570277,1741305827743,5100.0,0.00011,21]
[355570278,1741305836709,5100.0,0.00011,22]
[355570279,1741305842439,-185.70527412,8.407e-05,2]
[355570280,1741305849996,-185.70527412,8.392e-05,2]
[355570281,1741305854138,-185.70527412,8.392e-05,2]
[355570282,1741305856258,-185.70527412,8.392e-05,2]
[355570283,1741305859870,-185.70527412,8.392e-05,2]
[355570284,1741305862701,-185.70527412,8.392e-05,2]
[355570285,1741305887486,-2000.0,8.384e-05,2]
[355570286,1741305887509,-1991.24717151,8.392e-05,2]
[355570287,1741305932344,150.0,0.00019429,120]
[355570308,1741306231807,-1240.95878,8.219e-05,2]
[355570309,1741306231819,-447.46047696,8.219e-05,2]
[355570310,1741306231835,-2074.35074304,8.219e-05,2]
[355570311,1741306231845,-134.62110129,8.263e-05,2]
[355570312,1741306231875,-15.37889871,8.263e-05,2]
[355570313,1741306231885,-150.0,8.301e-05,2]
[355570314,1741306231895,-1724.42,8.307e-05,2]
[355570315,1741306231906,-23900.0,8.317e-05,2]
[355570316,1741306231918,-2122.93265371,8.317e-05,2]
[355570317,1741306231928,-9618.55664347,8.317e-05,2]
[355570318,1741306231938,-150.29,8.347e-05,2]
[355570319,1741306231948,-250.0,8.366e-05,2]
[355570320,1741306231959,-2229.54645789,8.392e-05,2]
[355570321,1741306231969,-3636.02472588,8.407e-05,2]
[355570322,1741306231979,-150.0,8.409e-05,2]
[355570323,1741306231989,-8340.1,8.409e-05,2]
[355570324,1741306231998,-9995.97,8.41e-05,2]
[355570325,1741306232008,-1500.0,8.413e-05,2]
[355570326,1741306232017,-2974.32,8.413e-05,2]
[355570327,1741306232027,-1805.87,8.413e-05,2]
[355570328,1741306232037,-6584.94,8.414e-05,2]
[355570329,1741306232048,-200.0,8.423e-05,2]
[355570330,1741306232061,-545.55,8.428e-05,2]
[355570331,1741306232070,-1026.37527412,8.47e-05,2]
[355570332,1741306232080,-1411.73489587,8.488e-05,2]
[355570333,1741306232090,-1000.0,8.49e-05,2]
[355570334,1741306232100,-150.29,8.811e-05,2]
[355570335,1741306232109,-214.0,8.838e-05,3]
[355570336,1741306232119,-253.04,8.875e-05,2]
[355570337,1741306232129,-6906.83276064,8.888e-05,2]
[355570338,1741306232140,-253.04,8.912e-05,2]
[355570339,1741306232151,-253.04,8.95e-05,2]
[355570340,1741306232162,-253.04,8.987e-05,2]
[355570341,1741306232172,-253.04,9.024e-05,2]
[355570342,1741306232182,-1043.27,9.037e-05,2]
[355570343,1741306232192,-150.0,9.041e-05,2]
[355570344,1741306232202,-167.55,9.05e-05,2]
[355570345,1741306232212,-253.04,9.061e-05,2]
[355570346,1741306232222,-500.0,9.084e-05,2]
[355570347,1741306232232,-1200.0,9.084e-05,2]
[355570348,1741306232243,-253.04,9.098e-05,2]
[355570349,1741306232252,-2000.0,9.13e-05,2]
[355570350,1741306232262,-253.04,9.136e-05,2]
[355570352,1741306232271,-253.04,9.173e-05,2]
[355570353,1741306232280,-150.0,9.178e-05,2]
[355570354,1741306232290,-150.0,9.178e-05,2]
[355570355,1741306232300,-440.21,9.178e-05,2]
[355570356,1741306232310,-400.0,9.2e-05,3]
[355570357,1741306232319,-253.04,9.21e-05,2]
[355570358,1741306232329,-253.04,9.247e-05,2]
[355570359,1741306232338,-255.0,9.25e-05,2]
[355570360,1741306232347,-150.29,9.275e-05,2]
[355570361,1741306232357,-253.04,9.285e-05,2]
[355570362,1741306232367,-900.0,9.3e-05,3]
[355570363,1741306232377,-253.04,9.322e-05,2]
[355570364,1741306232386,-253.04,9.359e-05,2]
[355570365,1741306232396,-253.04,9.396e-05,2]
[355570366,1741306232405,-1400.0,9.4e-05,3]
[355570367,1741306232416,-253.04,9.433e-05,2]
[355570368,1741306232426,-253.04,9.471e-05,2]
[355570369,1741306232435,-193.75,9.478e-05,2]
[355570370,1741306232445,-1800.0,9.5e-05,3]
[355570371,1741306232454,-253.04,9.508e-05,2]
[355570372,1741306232464,-550.0,9.511e-05,2]
[355570373,1741306232474,-214.0,9.531e-05,3]
[355570374,1741306232483,-972.60462215,9.542e-05,2]
[355570381,1741306237706,-1585.03637041,9.542e-05,2]
[355570484,1741306239696,-1472.37900744,9.542e-05,2]
[355570485,1741306239706,-1677.73492073,9.542e-05,2]
[355570486,1741306239718,-116.93507927,9.542e-05,2]
[355570487,1741306239728,-253.04,9.545e-05,2]
[355570488,1741306239737,-1000.0,9.551e-05,2]
[355570489,1741306239747,-1995.48288896,9.6e-05,3]
[355570490,1741306239827,-304.51711104,9.6e-05,3]
[355570491,1741306239837,-267.3851,9.681e-05,2]
[355570492,1741306239846,-400.0,9.7e-05,3]
[355570493,1741306239855,-150.29,9.739e-05,2]
[355570494,1741306239865,-550.0,9.78e-05,2]
[355570495,1741306239875,-1529.31359203,9.781e-05,7]
[355570496,1741306239884,-8423.965841,9.781e-05,7]
[355570497,1741306239893,-250.0,9.788e-05,2]
[355570498,1741306239903,-914.92,9.793e-05,2]
[355570499,1741306239914,-2800.8983,9.793e-05,2]
[355570500,1741306239923,-1856.8108,9.793e-05,2]
[355570501,1741306239934,-1200.0868,9.793e-05,2]
[355570502,1741306239943,-2084.0414,9.793e-05,2]
[355570503,1741306239953,-1806.3342,9.793e-05,2]
[355570504,1741306239963,-400.0,9.8e-05,3]
[355570505,1741306239972,-168.4,9.829e-05,2]
[355570506,1741306239982,-150.0,9.84e-05,2]
[355570507,1741306239992,-3930.0,9.84e-05,2]
[355570508,1741306240002,-1012.0,9.84e-05,2]
[355570509,1741306240011,-190.0706,9.892e-05,2]
[355570510,1741306240021,-5000.0,9.892e-05,2]
[355570511,1741306240031,-81385.2803,9.893e-05,2]
[355570512,1741306240041,-229.7288,9.893e-05,2]
[355570513,1741306240050,-673.34868723,9.893e-05,2]
[355570514,1741306240061,-1114.788,9.897e-05,2]
[355570515,1741306240072,-400.0,9.9e-05,3]
[355570516,1741306240082,-110716.79410728,9.9e-05,2]
[355570517,1741306240091,-673.34868721,9.914e-05,2]
[355570518,1741306240103,-2740.22630092,9.92e-05,2]
[355570519,1741306240112,-2740.22630092,9.955e-05,2]
[355570520,1741306240122,-581.72065862,9.973e-05,2]
[355570521,1741306240131,-472.43090821,9.983e-05,2]
[355570522,1741306240142,-2740.22630092,9.984e-05,2]
[355570523,1741306240152,-500.0,9.989e-05,2]
[355570524,1741306240161,-500.0,9.989e-05,2]
[355570525,1741306240171,-500.0,9.989e-05,2]
[355570526,1741306240181,-1143.92,9.989e-05,2]
[355570527,1741306240191,-500.0,9.99e-05,2]
[355570528,1741306240200,-298.96608106,9.99e-05,2]
[355570529,1741306240210,-500.0,9.99e-05,2]
[355570530,1741306240219,-500.0,9.99e-05,2]
[355570531,1741306240229,-500.0,9.99e-05,2]
[355570532,1741306240238,-500.0,9.99e-05,2]
[355570533,1741306240248,-450.0,9.99e-05,2]
[355570534,1741306240257,-2173.672804,9.99e-05,2]
[355570535,1741306240268,-1687.37,9.99e-05,2]
[355570536,1741306240278,-839.96,9.99e-05,2]
[355570537,1741306240288,-2593.231292,9.99e-05,2]
[355570538,1741306240297,-500.0,9.99e-05,2]
[355570539,1741306240307,-154.153739,9.99e-05,2]
[355570541,1741306240316,-2397.14,9.99e-05,2]
[355570543,1741306240327,-177.785421,9.99e-05,2]
[355570544,1741306240336,-1329.37,9.99e-05,2]
[355570545,1741306240345,-500.0,9.99e-05,2]
[355570546,1741306240355,-2539.39,9.99e-05,2]
[355570550,1741306240365,-1824.93,9.99e-05,2]
[355570552,1741306240375,-1078.47,9.99e-05,2]
[355570554,1741306240385,-1129.09,9.99e-05,2]
[355570556,1741306240394,-1739.76,9.99e-05,2]
[355570558,1741306240403,-1632.21,9.99e-05,2]
[355570559,1741306240413,-1750.27,9.99e-05,2]
[355570560,1741306240422,-846.47,9.99e-05,2]
[355570561,1741306240431,-1921.82,9.99e-05,2]
[355570562,1741306240441,-3022.05,9.99e-05,2]
[355570563,1741306240450,-6193.23,9.99e-05,2]
[355570564,1741306240460,-2280.49,9.99e-05,2]
[355570565,1741306240469,-2205.02,9.99e-05,2]
[355570566,1741306240479,-500.0,9.99e-05,2]
[355570567,1741306240488,-1249.48,9.99e-05,2]
[355570568,1741306240497,-527.04,9.99e-05,2]
[355570569,1741306240507,-2664.97,9.99e-05,2]
[355570570,1741306240515,-1468.32,9.99e-05,2]
[355570571,1741306240525,-922.25,9.99e-05,2]
[355570572,1741306240534,-1626.59,9.99e-05,2]
[355570573,1741306240543,-500.0,9.99e-05,2]
[355570574,1741306240553,-1472.55,9.99e-05,2]
[355570575,1741306240563,-3008.29,9.99e-05,2]
[355570576,1741306240573,-3430.71,9.99e-05,2]
[355570577,1741306240583,-617.3,9.99e-05,2]
[355570578,1741306240593,-500.0,9.99e-05,2]
[355570579,1741306240603,-5221.27,9.99e-05,2]
[355570580,1741306240612,-2448.41,9.99e-05,2]
[355570581,1741306240621,-500.0,9.99e-05,2]
[355570582,1741306240634,-2349.66,9.99e-05,2]
[355570583,1741306240646,-500.0,9.99e-05,2]
[355570584,1741306240657,-1602.29,9.99e-05,2]
[355570585,1741306240669,-1574.45,9.99e-05,2]
[355570586,1741306240679,-1613.94,9.99e-05,2]
[355570587,1741306240690,-1044.96,9.99e-05,2]
[355570588,1741306240700,-8162.69,9.99e-05,2]
[355570589,1741306240709,-8617.67,9.99e-05,2]
[355570590,1741306240718,-2507.81,9.99e-05,2]
[355570591,1741306240728,-1061.18,9.99e-05,2]
[355570592,1741306240738,-1435.92,9.99e-05,2]
[355570593,1741306240747,-596.85,9.99e-05,2]
[355570594,1741306240756,-1715.44,9.99e-05,2]
[355570595,1741306240766,-500.0,9.99e-05,2]
[355570596,1741306240775,-1326.38,9.99e-05,2]
[355570597,1741306240786,-500.0,9.99e-05,2]
[355570598,1741306240795,-5835.03,9.99e-05,2]
[355570599,1741306240805,-711.14,9.99e-05,2]
[355570600,1741306240815,-500.0,9.991e-05,2]
[355570601,1741306240824,-500.0,9.991e-05,2]
[355570602,1741306240834,-500.0,9.991e-05,2]
[355570603,1741306240843,-1165.33,9.991e-05,2]
[355570604,1741306240853,-500.0,9.991e-05,2]
[355570605,1741306240863,-500.0,9.991e-05,2]
[355570606,1741306240873,-500.0,9.991e-05,2]
[355570607,1741306240882,-500.0,9.991e-05,2]
[355570608,1741306240892,-501.33622084,9.991e-05,2]
[355570609,1741306240904,-500.0,9.991e-05,2]
[355570610,1741306240914,-500.0,9.991e-05,2]
[355570611,1741306240924,-500.0,9.991e-05,2]
[355570612,1741306240934,-500.0,9.991e-05,2]
[355570613,1741306240944,-500.0,9.991e-05,2]
[355570614,1741306240953,-500.0,9.991e-05,2]
[355570615,1741306240963,-500.0,9.991e-05,2]
[355570616,1741306240974,-500.0,9.991e-05,2]
[355570617,1741306240983,-500.0,9.991e-05,2]
[355570618,1741306240993,-509.14073422,9.991e-05,2]
[355570619,1741306241003,-500.0,9.991e-05,2]
[355570620,1741306241014,-500.0,9.991e-05,2]
[355570621,1741306241023,-500.0,9.991e-05,2]
[355570622,1741306241033,-504.94518835,9.991e-05,2]
[355570623,1741306241042,-500.0,9.991e-05,2]
[355570624,1741306241052,-500.0,9.991e-05,2]
[355570625,1741306241063,-500.0,9.991e-05,2]
[355570626,1741306241072,-500.0,9.991e-05,2]
[355570627,1741306241082,-500.0,9.991e-05,2]
[355570628,1741306241092,-500.0,9.991e-05,2]
[355570629,1741306241102,-500.0,9.991e-05,2]
[355570630,1741306241113,-500.0,9.991e-05,2]
[355570631,1741306241122,-500.0,9.991e-05,2]
[355570632,1741306241132,-500.0,9.991e-05,2]
[355570633,1741306241144,-284.56063734,9.991e-05,2]
[355570634,1741306241154,-514.52404178,9.991e-05,2]
[355570635,1741306241164,-500.0,9.991e-05,2]
[355570636,1741306241174,-589.65,9.991e-05,2]
[355570637,1741306241184,-515.99402156,9.991e-05,2]
[355570638,1741306241193,-500.0,9.991e-05,2]
[355570639,1741306241202,-508.94319562,9.991e-05,2]
[355570640,1741306241213,-507.21807176,9.991e-05,2]
[355570641,1741306241223,-500.0,9.991e-05,2]
[355570642,1741306241234,-500.0,9.991e-05,2]
[355570643,1741306241243,-500.0,9.991e-05,2]
[355570644,1741306241252,-500.0,9.991e-05,2]
[355570645,1741306241262,-184.35544728,9.991e-05,2]
[355570646,1741306241271,-503.35403899,9.991e-05,2]
[355570647,1741306241281,-500.0,9.991e-05,2]
[355570648,1741306241290,-500.0,9.991e-05,2]
[355570649,1741306241299,-502.3342575,9.991e-05,2]
[355570650,1741306241309,-795.96,9.991e-05,2]
[355570651,1741306241318,-500.0,9.991e-05,2]
[355570652,1741306241327,-500.0,9.991e-05,2]
[355570653,1741306241337,-500.0,9.991e-05,2]
[355570654,1741306241346,-541.10748351,9.991e-05,2]
[355570655,1741306241356,-502.82033388,9.991e-05,2]
[355570656,1741306241365,-500.0,9.991e-05,2]
[355570657,1741306241374,-517.32332713,9.991e-05,2]
[355570658,1741306241384,-500.0,9.991e-05,2]
[355570659,1741306241394,-500.0,9.991e-05,2]
[355570660,1741306241404,-500.0,9.991e-05,2]
[355570661,1741306241414,-500.0,9.991e-05,2]
[355570662,1741306241424,-500.0,9.991e-05,2]
[355570663,1741306241435,-500.0,9.991e-05,2]
[355570664,1741306241444,-500.0,9.991e-05,2]
[355570665,1741306241453,-500.0,9.991e-05,2]
[355570666,1741306241463,-500.0,9.991e-05,2]
[355570667,1741306241473,-500.0,9.991e-05,2]
[355570668,1741306241483,-798.29,9.991e-05,2]
[355570669,1741306241492,-500.0,9.991e-05,2]
[355570670,1741306241502,-500.0,9.991e-05,2]
[355570671,1741306241512,-500.0,9.991e-05,2]
[355570672,1741306241521,-500.0,9.991e-05,2]
[355570673,1741306241531,-500.0,9.991e-05,2]
[355570674,1741306241541,-500.0,9.991e-05,2]
[355570675,1741306241551,-500.0,9.991e-05,2]
[355570676,1741306241560,-501.96995523,9.991e-05,2]
[355570677,1741306241570,-500.0,9.991e-05,2]
[355570678,1741306241579,-500.0,9.991e-05,2]
[355570679,1741306241589,-500.0,9.991e-05,2]
[355570680,1741306241599,-500.0,9.991e-05,2]
[355570681,1741306241608,-500.0,9.991e-05,2]
[355570682,1741306241617,-500.0,9.991e-05,2]
[355570683,1741306241627,-500.0,9.991e-05,2]
[355570684,1741306241636,-500.0,9.991e-05,2]
[355570685,1741306241645,-500.0,9.991e-05,2]
[355570686,1741306241654,-524.58973041,9.991e-05,2]
[355570687,1741306241663,-510.80279767,9.991e-05,2]
[355570688,1741306241674,-183.9285474,9.991e-05,2]
[355570689,1741306241683,-456.94532954,9.991e-05,2]
[355570690,1741306241693,-230.49343229,9.991e-05,2]
[355570691,1741306241703,-500.0,9.991e-05,2]
[355570692,1741306241712,-500.0,9.991e-05,2]
[355570693,1741306241721,-500.0,9.991e-05,2]
[355570694,1741306241731,-500.0,9.991e-05,2]
[355570695,1741306241740,-500.0,9.991e-05,2]
[355570696,1741306241750,-500.0,9.991e-05,2]
[355570697,1741306241759,-193.14766913,9.991e-05,2]
[355570698,1741306241769,-291.69871951,9.991e-05,2]
[355570699,1741306241779,-500.0,9.991e-05,2]
[355570700,1741306241788,-500.0,9.991e-05,2]
[355570701,1741306241797,-500.0,9.991e-05,2]
[355570702,1741306241807,-538.4945918,9.991e-05,2]
[355570703,1741306241816,-505.39054972,9.991e-05,2]
[355570704,1741306241825,-500.0,9.991e-05,2]
[355570705,1741306241835,-503.27468534,9.991e-05,2]
[355570706,1741306241845,-500.0,9.991e-05,2]
[355570707,1741306241855,-500.0,9.991e-05,2]
[355570708,1741306241864,-500.0,9.991e-05,2]
[355570709,1741306241874,-500.0,9.991e-05,2]
[355570710,1741306241884,-500.0,9.991e-05,2]
[355570711,1741306241893,-500.0,9.991e-05,2]
[355570712,1741306241903,-500.0,9.991e-05,2]
[355570713,1741306241914,-500.0,9.991e-05,2]
[355570714,1741306241924,-500.0,9.991e-05,2]
[355570715,1741306241933,-500.0,9.991e-05,2]
[355570716,1741306241943,-500.0,9.991e-05,2]
[355570717,1741306241952,-500.0,9.991e-05,2]
[355570718,1741306241962,-500.0,9.991e-05,2]
[355570719,1741306241971,-500.0,9.991e-05,2]
[355570720,1741306241981,-500.0,9.991e-05,2]
[355570721,1741306241992,-510.8711408,9.991e-05,2]
[355570722,1741306242001,-500.0,9.991e-05,2]
[355570723,1741306242011,-500.0,9.991e-05,2]
[355570724,1741306242021,-506.04886768,9.991e-05,2]
[355570725,1741306242030,-500.0,9.991e-05,2]
[355570726,1741306242041,-500.0,9.991e-05,2]
[355570727,1741306242050,-500.0,9.991e-05,2]
[355570728,1741306242061,-500.0,9.991e-05,2]
[355570729,1741306242071,-500.0,9.991e-05,2]
[355570730,1741306242081,-500.0,9.991e-05,2]
[355570731,1741306242090,-500.0,9.991e-05,2]
[355570732,1741306242100,-500.0,9.991e-05,2]
[355570733,1741306242109,-517.441036,9.991e-05,2]
[355570734,1741306242118,-500.0,9.991e-05,2]
[355570735,1741306242127,-500.0,9.991e-05,2]
[355570736,1741306242138,-500.0,9.991e-05,2]
[355570737,1741306242147,-500.0,9.991e-05,2]
[355570738,1741306242156,-500.0,9.991e-05,2]
[355570739,1741306242165,-500.0,9.991e-05,2]
[355570740,1741306242175,-500.0,9.991e-05,2]
[355570741,1741306242185,-500.0,9.991e-05,2]
[355570742,1741306242195,-500.0,9.991e-05,2]
[355570743,1741306242204,-500.0,9.991e-05,2]
[355570744,1741306242214,-500.0,9.991e-05,2]
[355570745,1741306242223,-549.61104828,9.991e-05,2]
[355570746,1741306242233,-500.0,9.991e-05,2]
[355570747,1741306242242,-500.0,9.991e-05,2]
[355570748,1741306242252,-500.0,9.991e-05,2]
[355570749,1741306242261,-501.62146794,9.991e-05,2]
[355570750,1741306242271,-500.0,9.991e-05,2]
[355570751,1741306242280,-647.23,9.991e-05,2]
[355570752,1741306242289,-529.24305732,9.991e-05,2]
[355570753,1741306242299,-500.0,9.991e-05,2]
[355570754,1741306242309,-500.0,9.991e-05,2]
[355570755,1741306242319,-500.0,9.991e-05,2]
[355570756,1741306242329,-510.30339879,9.991e-05,2]
[355570757,1741306242338,-688.7,9.991e-05,2]
[355570758,1741306242347,-500.0,9.991e-05,2]
[355570759,1741306242357,-500.0,9.991e-05,2]
[355570760,1741306242366,-290.67479832,9.991e-05,2]
[355570761,1741306242376,-500.0,9.991e-05,2]
[355570762,1741306242386,-507.1583117,9.991e-05,2]
[355570763,1741306242396,-828.4,9.991e-05,2]
[355570764,1741306242405,-500.0,9.991e-05,2]
[355570765,1741306242415,-500.0,9.991e-05,2]
[355570766,1741306242424,-500.0,9.991e-05,2]
[355570767,1741306242434,-500.0,9.991e-05,2]
[355570768,1741306242444,-502.90707833,9.991e-05,2]
[355570769,1741306242453,-500.0,9.991e-05,2]
[355570770,1741306242465,-500.0,9.991e-05,2]
[355570771,1741306242475,-500.0,9.991e-05,2]
[355570772,1741306242484,-500.0,9.991e-05,2]
[355570773,1741306242494,-500.0,9.991e-05,2]
[355570774,1741306242504,-500.0,9.991e-05,2]
[355570775,1741306242514,-500.0,9.991e-05,2]
[355570776,1741306242523,-500.0,9.991e-05,2]
[355570777,1741306242533,-500.0,9.991e-05,2]
[355570778,1741306242543,-512.52408548,9.991e-05,2]
[355570779,1741306242554,-500.0,9.991e-05,2]
[355570780,1741306242564,-500.0,9.991e-05,2]
[355570781,1741306242574,-500.0,9.991e-05,2]
[355570784,1741306242584,-510.87610005,9.991e-05,2]
[355570787,1741306242594,-500.0,9.991e-05,2]
[355570790,1741306242603,-500.0,9.991e-05,2]
[355570793,1741306242612,-500.0,9.991e-05,2]
[355570795,1741306242622,-500.0,9.991e-05,2]
[355570797,1741306242632,-569.42755619,9.991e-05,2]
[355570799,1741306242641,-500.0,9.991e-05,2]
[355570802,1741306242651,-500.0,9.991e-05,2]
[355570805,1741306242661,-504.57506496,9.991e-05,2]
[355570807,1741306242670,-500.0,9.991e-05,2]
[355570809,1741306242680,-500.0,9.991e-05,2]
[355570811,1741306242690,-500.0,9.991e-05,2]
[355570813,1741306242699,-500.0,9.991e-05,2]
[355570815,1741306242709,-500.0,9.991e-05,2]
[355570817,1741306242718,-499.99470909,9.991e-05,2]
[355570819,1741306242728,-500.0,9.991e-05,2]
[355570821,1741306242737,-500.0,9.991e-05,2]
[355570823,1741306242747,-500.0,9.991e-05,2]
[355570825,1741306242756,-500.0,9.991e-05,2]
[355570827,1741306242766,-500.0,9.991e-05,2]
[355570828,1741306242776,-509.9098263,9.991e-05,2]
[355570831,1741306242786,-500.0,9.991e-05,2]
[355570832,1741306242795,-500.0,9.991e-05,2]
[355570834,1741306242805,-534.30643196,9.991e-05,2]
[355570836,1741306242815,-504.28840048,9.991e-05,2]
[355570837,1741306242825,-500.0,9.991e-05,2]
[355570838,1741306242835,-394.01688784,9.991e-05,2]
[355570839,1741306242845,-500.0,9.991e-05,2]
[355570840,1741306242855,-500.0,9.991e-05,2]
[355570841,1741306242865,-500.0,9.991e-05,2]
[355570842,1741306242875,-500.0,9.991e-05,2]
[355570843,1741306242885,-500.0,9.991e-05,2]
[355570844,1741306242894,-500.0,9.991e-05,2]
[355570845,1741306242904,-500.0,9.991e-05,2]
[355570846,1741306242913,-500.0,9.991e-05,2]
[355570847,1741306242923,-500.0,9.991e-05,2]
[355570848,1741306242933,-500.0,9.991e-05,2]
[355570849,1741306242943,-500.0,9.991e-05,2]
[355570850,1741306242953,-500.0,9.991e-05,2]
[355570851,1741306242963,-76.02721645,9.991e-05,2]
[355570852,1741306242982,-423.97278355,9.991e-05,2]
[355570853,1741306242991,-500.0,9.991e-05,2]
[355570854,1741306243002,-500.0,9.991e-05,2]
[355570855,1741306243012,-500.0,9.991e-05,2]
[355570856,1741306243022,-500.0,9.991e-05,2]
[355570857,1741306243032,-502.75791015,9.991e-05,2]
[355570858,1741306243042,-500.0,9.991e-05,2]
[355570859,1741306243052,-500.0,9.991e-05,2]
[355570860,1741306243063,-500.0,9.991e-05,2]
[355570861,1741306243073,-500.0,9.991e-05,2]
[355570862,1741306243082,-241.81556236,9.991e-05,2]
[355570864,1741306243092,-500.0,9.991e-05,2]
[355570866,1741306243103,-500.0,9.991e-05,2]
[355570867,1741306243113,-500.0,9.991e-05,2]
[355570868,1741306243123,-617.68,9.991e-05,2]
[355570869,1741306243133,-500.0,9.991e-05,2]
[355570870,1741306243144,-648.35,9.991e-05,2]
[355570872,1741306243154,-500.0,9.991e-05,2]
[355570873,1741306243163,-500.0,9.991e-05,2]
[355570875,1741306243173,-512.33565434,9.991e-05,2]
[355570877,1741306243183,-500.0,9.991e-05,2]
[355570878,1741306243193,-500.0,9.991e-05,2]
[355570879,1741306243202,-500.0,9.991e-05,2]
[355570880,1741306243211,-500.0,9.991e-05,2]
[355570881,1741306243221,-500.0,9.991e-05,2]
[355570882,1741306243232,-500.0,9.991e-05,2]
[355570883,1741306243242,-254.99792419,9.991e-05,2]
[355570884,1741306243254,-245.00207581,9.991e-05,2]
[355570885,1741306243263,-500.0,9.991e-05,2]
[355570886,1741306243273,-500.0,9.991e-05,2]
[355570887,1741306243283,-503.3122088,9.991e-05,2]
[355570888,1741306243292,-776.98747014,9.991e-05,2]
[355570889,1741306243348,-92.32252986,9.991e-05,2]
[355570890,1741306243358,-426.40112068,9.991e-05,2]
[355570891,1741306243369,-73.59887932,9.991e-05,2]
[355570892,1741306243378,-254.87241019,9.991e-05,2]
[355570893,1741306243390,-245.12758981,9.991e-05,2]
[355570894,1741306243400,-170.27741019,9.991e-05,2]
[355570895,1741306243411,-329.72258981,9.991e-05,2]
[355570896,1741306243421,-500.0,9.991e-05,2]
[355570897,1741306243431,-500.0,9.991e-05,2]
[355570898,1741306243441,-500.0,9.991e-05,2]
[355570899,1741306243450,-500.0,9.991e-05,2]
[355570900,1741306243459,-500.0,9.991e-05,2]
[355570901,1741306243469,-500.0,9.991e-05,2]
[355570902,1741306243478,-500.0,9.991e-05,2]
[355570903,1741306243487,-500.0,9.991e-05,2]
[355570904,1741306243497,-934.73,9.991e-05,2]
[355570905,1741306243507,-398.55290873,9.991e-05,2]
[355570906,1741306243519,-101.44709127,9.991e-05,2]
[355570907,1741306243528,-575.44,9.991e-05,2]
[355570908,1741306243724,-500.0,9.991e-05,2]
[355570909,1741306243735,-500.0,9.991e-05,2]
[355570910,1741306243745,-500.0,9.991e-05,2]
[355570911,1741306243754,-491.81071135,9.991e-05,2]
[355570912,1741306243765,-500.0,9.991e-05,2]
[355570913,1741306243775,-500.0,9.991e-05,2]
[355570914,1741306243784,-506.39918457,9.991e-05,2]
[355570915,1741306243794,-500.0,9.991e-05,2]
[355570916,1741306243803,-202.4989943,9.991e-05,2]
[355570917,1741306243813,-500.0,9.991e-05,2]
[355570918,1741306243823,-500.0,9.991e-05,2]
[355570919,1741306243833,-500.0,9.991e-05,2]
[355570920,1741306243842,-500.0,9.991e-05,2]
[355570921,1741306243852,-500.0,9.991e-05,2]
[355570922,1741306243861,-500.0,9.991e-05,2]
[355570923,1741306243871,-500.0,9.991e-05,2]
[355570924,1741306243881,-322.88530699,9.991e-05,2]
[355570925,1741306243890,-500.0,9.991e-05,2]
[355570926,1741306243900,-507.80764611,9.991e-05,2]
[355570927,1741306243909,-867.91,9.991e-05,2]
[355570928,1741306243919,-500.0,9.991e-05,2]
[355570929,1741306243929,-500.0,9.991e-05,2]
[355570930,1741306243938,-500.0,9.991e-05,2]
[355570931,1741306243947,-500.0,9.991e-05,2]
[355570932,1741306243957,-500.0,9.991e-05,2]
[355570933,1741306243966,-500.0,9.991e-05,2]
[355570934,1741306243976,-665.94,9.991e-05,2]
[355570935,1741306243987,-500.0,9.991e-05,2]
[355570936,1741306243996,-500.0,9.991e-05,2]
[355570937,1741306244005,-500.0,9.991e-05,2]
[355570938,1741306244015,-500.0,9.991e-05,2]
[355570939,1741306244024,-512.28570555,9.991e-05,2]
[355570940,1741306244035,-500.0,9.991e-05,2]
[355570941,1741306244044,-500.0,9.991e-05,2]
[355570942,1741306244054,-500.0,9.991e-05,2]
[355570943,1741306244067,-500.0,9.991e-05,2]
[355570944,1741306244077,-500.0,9.991e-05,2]
[355570945,1741306244087,-500.0,9.991e-05,2]
[355570946,1741306244096,-175.18893574,9.991e-05,2]
[355570947,1741306244107,-500.0,9.991e-05,2]
[355570948,1741306244116,-500.0,9.991e-05,2]
[355570949,1741306244127,-863.7,9.991e-05,2]